Workbook

Sheet свод
A1: Наименование закупки: | C1: Выполнение комплекса строительно-монтажных работ по монтажу подкрановых путей крытого склада №1 и №2 на объекте «Терминал по перевалке минеральных удобрений в морском торговом порту Усть-Луга».
A2: Исх. № ______________ от __.__.2023г.
A4: Наименование Участника:
A5: ИНН Участника
A7: № п/п | B7: Наименование | C7: Требование ООО «ЕТУ» | D7: Предложение Участника, руб без НДС | F7: по сметам
D8: Материалы | E8: Работы | F8: материалы | G8: работа | N8: материалы | O8: работа
A9: 1 | B9: Конструкции железобетонные. Ростверк., 07.03.010 Крытый склад № 1 (код SAP 01.01.001) код ГП 3.1 | D9: ='3.1-КЖ1_индикатив'!K82/1.2 -> 309982.43 | E9: ='3.1-КЖ1_индикатив'!I82/1.2 -> 21546138.58 | F9: ='[1]1632-2021-3.1-КЖ1_07.03.010-Сме'!$M$248+'[1]1632-2021-3.1-КЖ1_07.03.010-Сме'!$M$256 -> 258938.95 | G9: ='[1]1632-2021-3.1-КЖ1_07.03.010-Сме'!$M$247+'[1]1632-2021-3.1-КЖ1_07.03.010-Сме'!$M$249+'[1]1632-2021-3.1-КЖ1_07.03.010-Сме'!$M$251+'[1]1632-2021-3.1-КЖ1_07.03.010-Сме'!$M$252 -> 15867111.22 | H9: 1.052 | I9: 1.02 | J9: 1.04 | K9: 1.03 | L9: 1.02 | M9: 1.03 | N9: =F9*H9*I9*J9*K9*L9*M10 -> 312695.23 | O9: =G9*H9*I9*J9*K9*L9*M9 -> 19161157.38 | P9: =N9+O9 -> 19473852.61 | Q9: =P9*1.2 -> 23368623.13
A10: 2 | B10: Конструкции железобетонные. Ростверк., 07.03.010 Крытый склад № 2 (код SAP 01.01.001) код ГП 3.1 | D10: ='3.2-КЖ1_индикатив'!K78/1.2 -> 593596.53 | E10: ='3.2-КЖ1_индикатив'!I78/1.2 -> 59427975.44 | F10: ='[2]1632-2021-3.2-КЖ1_07.03.010-Сме'!$M$217+'[2]1632-2021-3.2-КЖ1_07.03.010-Сме'!$M$225 -> 306199.27 | G10: ='[2]1632-2021-3.2-КЖ1_07.03.010-Сме'!$M$216+'[2]1632-2021-3.2-КЖ1_07.03.010-Сме'!$M$218+'[2]1632-2021-3.2-КЖ1_07.03.010-Сме'!$M$220+'[2]1632-2021-3.2-КЖ1_07.03.010-Сме'!$M$221 -> 48089341.96 | H10: 1.052 | I10: 1.02 | J10: 1.04 | K10: 1.03 | L10: 1.02 | M10: 1.03 | N10: =F10*H10*I10*J10*K10*L10*M9 -> 369766.89 | O10: =G10*H10*I10*J10*K10*L10*M10 -> 58072792.01 | P10: =N10+O10 -> 58442558.9 | Q10: =P10*1.2 -> 70131070.68
A11: 3 | B11: Итоговая стоимость строительно-монтажных работ | D11: =D9+D10 -> 903578.96 | E11: =E9+E10 -> 80974114.02 | Q11: =Q9+Q10 -> 93499693.81
A12: 4 | B12: ВСЕГО | D12: =D11+E11 -> 81877692.98 | Q12: во сметам сумма 98 млн за счет того,что на полную сумму начисляется ВЗиС
A13: 5 | B13: НДС | C13: 0.2 | D13: =D12*0.2 -> 16375538.6
A14: 6 | B14: Итоговая стоимость СМР, руб с НДС | D14: =D12+D13 -> 98253231.58

Sheet 3.1-КЖ1_индикатив
A2: Терминал по перевалке минеральных удобрений в морском торговом порту Усть-Луга. Береговые объекты терминала | X2: Терминал по перевалке минеральных удобрений в морском торговом порту Усть-Луга. Береговые объекты терминала
A3: (наименование стройки)
A5: ЛОКАЛЬНАЯ СМЕТА № 1632-2021-3.1-КЖ1_07.03.010-В02
A6: (локальная смета)
A7: на Конструкции железобетонные. Ростверк., 07.03.010 Крытый склад № 1 (код SAP 01.01.001) код ГП 3.1 | AP7: на Конструкции железобетонные. Ростверк., 07.03.010 Крытый склад № 1 (код SAP 01.01.001) код ГП 3.1
A8: (наименование работ и затрат, наименование объекта)
A10: № п/п | B10: Обоснование | C10: Наименование работ и затрат | F10: Единица измерения | G10: Кол-во | H10: Цена за ед.изм. работ, руб. с НДС | I10: Стоимость работ, всего, руб., с НДС | J10: Цена за ед.изм. материалов, руб. с НДС | K10: Стоимость материалов, всего, руб., с НДС
A11: 1 | B11: 2 | C11: 3 | F11: 4 | G11: 5 | H11: 6 | I11: 7 | J11: 8 | K11: 9
A13: Раздел 1. Рельсовый путь № 1 | L13: 1,2 | BZ13: Раздел 1. Рельсовый путь № 1
A14: 1 | B14: ТЕР09-03-005-02 Приказ Администрации ЛО от 20.10.15 №28 | C14: Монтаж подкрановых путей: по металлическим подкрановым балкам для рельсов типа КР //вес 83,09 кг./м | F14: 100 м рельса в одну нитку | G14: 6.499 | H14: =I14/L13 -> 6214603.03 | I14: 7457523.64 | J14: =K14/L13 -> 101038.34 | K14: 121246.01 | L14: 1,2 | CA14: Монтаж подкрановых путей: по металлическим подкрановым балкам для рельсов типа КР //вес 83,09 кг./м
A15: 2 * Материалы заказчика | B15: ТССЦ-202-0017 Приказ Администрации ЛО от 20.10.15 №28 | C15: Пути подкрановые, марка стали: С 255, крепления и упоры//Рельсовые комплекты | F15: т | G15: 25.17271 | H15: 0 | I15: 0 | J15: 0 | K15: 0 | L15: 1,2 | CA15: Пути подкрановые, марка стали: С 255, крепления и упоры//Рельсовые комплекты
A16: 3 *Материалы заказчика | B16: ТССЦ-202-0016 Приказ Администрации ЛО от 20.10.15 №28 | C16: Пути подкрановые, марка стали: С 255, рельсы железнодорожные | F16: т | G16: 27.0000955 | H16: 0 | I16: 0 | J16: 0 | K16: 0 | L16: 1,2 | CA16: Пути подкрановые, марка стали: С 255, рельсы железнодорожные
A17: Материалы заказчика | H17: 0 | I17: 0 | J17: 0 | K17: 0 | L17: 1,2 | CE17: Материалы заказчика
A18: Раздел 2. Рельсовый путь № 2 | H18: 0 | I18: 0 | J18: 0 | K18: 0 | L18: 1,2 | BZ18: Раздел 2. Рельсовый путь № 2
A19: 4 | B19: ТЕР09-03-005-02 Приказ Администрации ЛО от 20.10.15 №28 | C19: Монтаж подкрановых путей: по металлическим подкрановым балкам для рельсов типа КР //вес 83,09 кг./м | F19: 100 м рельса в одну нитку | G19: 6.8546 | H19: 6554641.92 | I19: 7865570.3 | J19: 106566.76 | K19: 127880.11 | L19: 1,2 | CA19: Монтаж подкрановых путей: по металлическим подкрановым балкам для рельсов типа КР //вес 83,09 кг./м
A20: 5 * Материалы заказчика | B20: ТССЦ-202-0017 Приказ Администрации ЛО от 20.10.15 №28 | C20: Пути подкрановые, марка стали: С 255, крепления и упоры//Рельсовые комплекты | F20: т | G20: 43.10634 | H20: 0 | I20: 0 | J20: 0 | K20: 0 | L20: 1,2 | CA20: Пути подкрановые, марка стали: С 255, крепления и упоры//Рельсовые комплекты
A21: 6 * Материалы заказчика | B21: ТССЦ-202-0016 Приказ Администрации ЛО от 20.10.15 №28 | C21: Пути подкрановые, марка стали: С 255, рельсы железнодорожные | F21: т | G21: 38.8895731 | H21: 0 | I21: 0 | J21: 0 | K21: 0 | L21: 1,2 | CA21: Пути подкрановые, марка стали: С 255, рельсы железнодорожные
A22: Материалы заказчика | H22: 0 | I22: 0 | J22: 0 | K22: 0 | L22: 1,2 | CE22: Материалы заказчика
A23: Раздел 3. Рельсовый путь № 3 | H23: 0 | I23: 0 | J23: 0 | K23: 0 | L23: 1,2 | BZ23: Раздел 3. Рельсовый путь № 3
A24: 7 | B24: ТЕР09-03-005-02 Приказ Администрации ЛО от 20.10.15 №28 | C24: Монтаж подкрановых путей: по металлическим подкрановым балкам для рельсов типа КР //вес 83,09 кг./м | F24: 100 м рельса в одну нитку | G24: 6.544 | H24: 7400353.12 | I24: 8880423.74 | J24: 101737.95 | K24: 122085.54 | L24: 1,2 | CA24: Монтаж подкрановых путей: по металлическим подкрановым балкам для рельсов типа КР //вес 83,09 кг./м
A25: 8 * Материалы заказчика | B25: ТССЦ-202-0017 Приказ Администрации ЛО от 20.10.15 №28 | C25: Пути подкрановые, марка стали: С 255, крепления и упоры//Рельсовые комплекты | F25: т | G25: 12.101 | H25: 0 | I25: 0 | J25: 0 | K25: 0 | L25: 1,2 | CA25: Пути подкрановые, марка стали: С 255, крепления и упоры//Рельсовые комплекты
A26: 9 * Материалы заказчика | B26: ТССЦ-202-0016 Приказ Администрации ЛО от 20.10.15 №28 | C26: Пути подкрановые, марка стали: С 255, рельсы железнодорожные | F26: т | G26: 4.109632 | H26: 0 | I26: 0 | J26: 0 | K26: 0 | L26: 1,2 | CA26: Пути подкрановые, марка стали: С 255, рельсы железнодорожные
A27: 10 | B27: ТЕР46-08-012-05 Приказ Администрации ЛО от 20.10.15 №28 | C27: Установка анкеров в отверстия глубиной 100 мм с применением смесей серии MASTERFLOW, диаметр анкера: 20 мм и более | F27: 100 шт. | G27: 13.06 | H27: 112507.73 | I27: 135009.28 | J27: 0 | K27: 0 | L27: 1,2 | CA27: Установка анкеров в отверстия глубиной 100 мм с применением смесей серии MASTERFLOW, диаметр анкера: 20 мм и более
A28: 11 | B28: ТЕР46-08-012-10 Приказ Администрации ЛО от 20.10.15 №28 | C28: На каждые 10 мм изменения глубины отверстия добавлять (уменьшать) к расценке: 46-08-012-05 | F28: 100 шт. | G28: 13.06 | H28: 305427.49 | I28: 366512.99 | J28: 0 | K28: 0 | L28: 1,2 | CA28: На каждые 10 мм изменения глубины отверстия добавлять (уменьшать) к расценке: 46-08-012-05
A29: 12 * Материалы заказчика | B29: ТССЦ-509-5787 Приказ Администрации ЛО от 20.10.15 №28 применительно | C29: Анкер химический (капсула с клеевым составом) Hilti HIT-HY 150/330 | F29: шт. | G29: 1306 | H29: 0 | I29: 0 | J29: 0 | K29: 0 | L29: 1,2 | CA29: Анкер химический (капсула с клеевым составом) Hilti HIT-HY 150/330
A30: 13 * Материалы заказчика | B30: ТССЦ-509-4617 Приказ Администрации ЛО от 20.10.15 №28 применительно | C30: Шпилька анкерная Hilti: HIT-V-5,8 М24х450 (HAS) для использования с химическими анкерами HIT | F30: шт. | G30: 1306 | H30: 0 | I30: 0 | J30: 0 | K30: 0 | L30: 1,2 | CA30: Шпилька анкерная Hilti: HIT-V-5,8 М24х450 (HAS) для использования с химическими анкерами HIT
A31: Раздел 4. Подливка из безусадочного мелкозернистого бетона | H31: 0 | I31: 0 | J31: 0 | K31: 0 | L31: 1,2 | BZ31: Раздел 4. Подливка из безусадочного мелкозернистого бетона
A32: Рельсовый путь № 3 длинна 327,2м толщ (разрез 15-15 лист 282) 54 мм ширина (разрез 15-15 лист 282) - 400 мм | H32: 0 | I32: 0 | J32: 0 | K32: 0 | L32: 1,2 | CF32: Рельсовый путь № 3 длинна 327,2м толщ (разрез 15-15 лист 282) 54 мм ширина (разрез 15-15 лист 282) - 400 мм
A33: Рельсовый путь № 2 длинна 342,73 м толщ (разрез 3-3 лист 282) 130 мм ширина (разрез 3-3 лист 282) - 600 мм | H33: 0 | I33: 0 | J33: 0 | K33: 0 | L33: 1,2 | CF33: Рельсовый путь № 2 длинна 342,73 м толщ (разрез 3-3 лист 282) 130 мм ширина (разрез 3-3 лист 282) - 600 мм
A34: Рельсовый путь № 1 длинна 324,95 м толщ (разрез 1-1 лист 282) 150 мм ширина (разрез 1-1 лист 282) - 600 мм | H34: 0 | I34: 0 | J34: 0 | K34: 0 | L34: 1,2 | CF34: Рельсовый путь № 1 длинна 324,95 м толщ (разрез 1-1 лист 282) 150 мм ширина (разрез 1-1 лист 282) - 600 мм
A35: Раздел 5. Крепление опорных деталей. Лист 282.2, 282.3 | H35: 0 | I35: 0 | J35: 0 | K35: 0 | L35: 1,2 | BZ35: Раздел 5. Крепление опорных деталей. Лист 282.2, 282.3
A36: Крепление стоек к ростверку | H36: 0 | I36: 0 | J36: 0 | K36: 0 | L36: 1,2 | CF36: Крепление стоек к ростверку
A37: 14 | B37: ТЕР46-08-012-01 Приказ Администрации ЛО от 20.10.15 №28 | C37: Установка анкеров в отверстия глубиной 100 мм с применением смесей серии MASTERFLOW, диаметр анкера: до 8 мм | F37: 100 шт. | G37: 2.96 | H37: 52875.95 | I37: 63451.14 | J37: 0 | K37: 0 | L37: 1,2 | CA37: Установка анкеров в отверстия глубиной 100 мм с применением смесей серии MASTERFLOW, диаметр анкера: до 8 мм
A38: 15 | B38: ТЕР46-08-012-06 Приказ Администрации ЛО от 20.10.15 №28 | C38: На каждые 10 мм изменения глубины отверстия добавлять (уменьшать) к расценке: 46-08-012-01 | F38: 100 шт. | G38: -2.96 | H38: -18121.27 | I38: -21745.52 | J38: 0 | K38: 0 | L38: 1,2 | CA38: На каждые 10 мм изменения глубины отверстия добавлять (уменьшать) к расценке: 46-08-012-01
A39: 16 * Материалы заказчика | B39: ТССЦ-509-2631 Приказ Администрации ЛО от 20.10.15 №28 Применительно | C39: Капсула с клеевым составом Hilti HVU-TZ M20 | F39: шт. | G39: 296 | H39: 0 | I39: 0 | J39: 0 | K39: 0 | L39: 1,2 | CA39: Капсула с клеевым составом Hilti HVU-TZ M20
A40: 17 * Материалы заказчика | B40: ТССЦ-509-4616 Приказ Администрации ЛО от 20.10.15 №28 Применительно | C40: Шпилька анкерная Hilti: HIT-V-5,8 М16х300 (HAS) для использования с химическими анкерами HIT | F40: шт. | G40: 296 | H40: 0 | I40: 0 | J40: 0 | K40: 0 | L40: 1,2 | CA40: Шпилька анкерная Hilti: HIT-V-5,8 М16х300 (HAS) для использования с химическими анкерами HIT
A41: Крепление тормозных упоров крацер-крана к роствергу | H41: 0 | I41: 0 | J41: 0 | K41: 0 | L41: 1,2 | CF41: Крепление тормозных упоров крацер-крана к роствергу
A42: 18 | B42: ТЕР46-08-012-05 Приказ Администрации ЛО от 20.10.15 №28 | C42: Установка анкеров в отверстия глубиной 100 мм с применением смесей серии MASTERFLOW, диаметр анкера: 20 мм и более | F42: 100 шт. | G42: 0.24 | H42: 10337.62 | I42: 12405.14 | J42: 0 | K42: 0 | L42: 1,2 | CA42: Установка анкеров в отверстия глубиной 100 мм с применением смесей серии MASTERFLOW, диаметр анкера: 20 мм и более
A43: 19 | B43: ТЕР46-08-012-10 Приказ Администрации ЛО от 20.10.15 №28 | C43: На каждые 10 мм изменения глубины отверстия добавлять (уменьшать) к расценке: 46-08-012-05 | F43: 100 шт. | G43: 0.24 | H43: 37418.37 | I43: 44902.04 | J43: 0 | K43: 0 | L43: 1,2 | CA43: На каждые 10 мм изменения глубины отверстия добавлять (уменьшать) к расценке: 46-08-012-05
A44: 20 * Материалы заказчика | B44: ТССЦ-509-4614 Приказ Администрации ЛО от 20.10.15 №28 применительно | C44: Анкер химический (капсула с клеевым составом) Hilti HVU М24/210 | F44: шт. | G44: 24 | H44: 0 | I44: 0 | J44: 0 | K44: 0 | L44: 1,2 | CA44: Анкер химический (капсула с клеевым составом) Hilti HVU М24/210
A45: 21 * Материалы заказчика | B45: ТССЦ-509-4617 Приказ Администрации ЛО от 20.10.15 №28 Применительно | C45: Шпилька анкерная Hilti: HIT-V-5,8 М24х450 (HAS) для использования с химическими анкерами HIT | F45: шт. | G45: 24 | H45: 0 | I45: 0 | J45: 0 | K45: 0 | L45: 1,2 | CA45: Шпилька анкерная Hilti: HIT-V-5,8 М24х450 (HAS) для использования с химическими анкерами HIT
A46: Крепление крацер-крана в сервесном положении | H46: =I46/L45 -> 0 | I46: 0 | J46: =K46/L45 -> 0 | K46: 0 | L46: 1,2 | CF46: Крепление крацер-крана в сервесном положении
A47: 22 | B47: ТЕР46-08-012-01 Приказ Администрации ЛО от 20.10.15 №28 | C47: Установка анкеров в отверстия глубиной 100 мм с применением смесей серии MASTERFLOW, диаметр анкера: до 8 мм | F47: 100 шт. | G47: 0.24 | H47: 4287.24 | I47: 5144.69 | J47: 0 | K47: 0 | L47: 1,2 | CA47: Установка анкеров в отверстия глубиной 100 мм с применением смесей серии MASTERFLOW, диаметр анкера: до 8 мм
A48: 23 | B48: ТЕР46-08-012-06 Приказ Администрации ЛО от 20.10.15 №28 | C48: На каждые 10 мм изменения глубины отверстия добавлять (уменьшать) к расценке: 46-08-012-01 | F48: 100 шт. | G48: 0.24 | H48: 11019.68 | I48: 13223.62 | J48: 0 | K48: 0 | L48: 1,2 | CA48: На каждые 10 мм изменения глубины отверстия добавлять (уменьшать) к расценке: 46-08-012-01
A49: 24 * Материалы заказчика | B49: ТССЦ-509-2631 Приказ Администрации ЛО от 20.10.15 №28 Применительно | C49: Капсула с клеевым составом Hilti HVU-TZ M20 | F49: шт. | G49: 24 | H49: 0 | I49: 0 | J49: 0 | K49: 0 | L49: 1,2 | CA49: Капсула с клеевым составом Hilti HVU-TZ M20
A50: 25 * Материалы заказчика | B50: ТССЦ-509-4616 Приказ Администрации ЛО от 20.10.15 №28 Применительно | C50: Шпилька анкерная Hilti: HIT-V-5,8 М16х300 (HAS) для использования с химическими анкерами HIT | F50: шт. | G50: 24 | H50: 0 | I50: 0 | J50: 0 | K50: 0 | L50: 1,2 | CA50: Шпилька анкерная Hilti: HIT-V-5,8 М16х300 (HAS) для использования с химическими анкерами HIT
A51: Крепление стоек хвостовой станции к ростверку | H51: 0 | I51: 0 | J51: 0 | K51: 0 | L51: 1,2 | CF51: Крепление стоек хвостовой станции к ростверку
A52: 26 | B52: ТЕР46-08-012-05 Приказ Администрации ЛО от 20.10.15 №28 | C52: Установка анкеров в отверстия глубиной 100 мм с применением смесей серии MASTERFLOW, диаметр анкера: 20 мм и более | F52: 100 шт. | G52: 0.16 | H52: 6891.73 | I52: 8270.07 | J52: 0 | K52: 0 | L52: 1,2 | CA52: Установка анкеров в отверстия глубиной 100 мм с применением смесей серии MASTERFLOW, диаметр анкера: 20 мм и более
A53: 27 | B53: ТЕР46-08-012-10 Приказ Администрации ЛО от 20.10.15 №28 | C53: На каждые 10 мм изменения глубины отверстия добавлять (уменьшать) к расценке: 46-08-012-05 | F53: 100 шт. | G53: 0.16 | H53: 18709.18 | I53: 22451.02 | J53: 0 | K53: 0 | L53: 1,2 | CA53: На каждые 10 мм изменения глубины отверстия добавлять (уменьшать) к расценке: 46-08-012-05
A54: 28 * Материалы заказчика | B54: ТССЦ-509-4614 Приказ Администрации ЛО от 20.10.15 №28 применительно | C54: Анкер химический (капсула с клеевым составом) Hilti HVU М24/210 | F54: шт. | G54: 16 | H54: 0 | I54: 0 | J54: 0 | K54: 0 | L54: 1,2 | CA54: Анкер химический (капсула с клеевым составом) Hilti HVU М24/210
A55: 29 * Материалы заказчика | B55: ТССЦ-509-4617 Приказ Администрации ЛО от 20.10.15 №28 Применительно | C55: Шпилька анкерная Hilti: HIT-V-5,8 М24х450 (HAS) для использования с химическими анкерами HIT | F55: шт. | G55: 16 | H55: 0 | I55: 0 | J55: 0 | K55: 0 | L55: 1,2 | CA55: Шпилька анкерная Hilti: HIT-V-5,8 М24х450 (HAS) для использования с химическими анкерами HIT
A56: 30 | B56: ТЕР46-03-014-01 Приказ Администрации ЛО от 20.10.15 №28 | C56: Сверление вертикальных отверстий в железобетонных конструкциях полов перфоратором глубиной 200 мм диаметром: 20 мм | F56: 100 отверстий | G56: 0.08 | H56: 2227.99 | I56: 2673.59 | J56: 0 | K56: 0 | L56: 1,2 | CA56: Сверление вертикальных отверстий в железобетонных конструкциях полов перфоратором глубиной 200 мм диаметром: 20 мм
A57: 31 | B57: ТЕР46-03-014-14 Приказ Администрации ЛО от 20.10.15 №28 | C57: На каждые 10 мм изменения глубины сверления добавлять или исключать: к расценке 46-03-014-01 | F57: 100 отверстий | G57: -0.08 | H57: -953.46 | I57: -1144.15 | J57: 0 | K57: 0 | L57: 1,2 | CA57: На каждые 10 мм изменения глубины сверления добавлять или исключать: к расценке 46-03-014-01
A58: 32 | B58: ТЕР06-01-015-03 Приказ Администрации ЛО от 20.10.15 №28 | C58: Установка анкерных болтов: при бетонировании со связями из арматуры | F58: 1 т | G58: 0.002317 | H58: 809.2 | I58: 971.04 | J58: 231.37 | K58: 277.64 | L58: 1,2 | CA58: Установка анкерных болтов: при бетонировании со связями из арматуры
A59: Крепление тормазных упоров мобильного бункера | H59: 0 | I59: 0 | J59: 0 | K59: 0 | L59: 1,2 | CF59: Крепление тормазных упоров мобильного бункера
A60: 33 | B60: ТЕР46-08-012-05 Приказ Администрации ЛО от 20.10.15 №28 | C60: Установка анкеров в отверстия глубиной 100 мм с применением смесей серии MASTERFLOW, диаметр анкера: 20 мм и более | F60: 100 шт. | G60: 0.18 | H60: 7753.24 | I60: 9303.89 | J60: 0 | K60: 0 | L60: 1,2 | CA60: Установка анкеров в отверстия глубиной 100 мм с применением смесей серии MASTERFLOW, диаметр анкера: 20 мм и более
A61: 34 | B61: ТЕР46-08-012-10 Приказ Администрации ЛО от 20.10.15 №28 | C61: На каждые 10 мм изменения глубины отверстия добавлять (уменьшать) к расценке: 46-08-012-05 | F61: 100 шт. | G61: 0.18 | H61: 21047.85 | I61: 25257.42 | J61: 0 | K61: 0 | L61: 1,2 | CA61: На каждые 10 мм изменения глубины отверстия добавлять (уменьшать) к расценке: 46-08-012-05
A62: 35 * Материалы заказчика | B62: ТССЦ-509-4614 Приказ Администрации ЛО от 20.10.15 №28 применительно | C62: Анкер химический (капсула с клеевым составом) Hilti HVU М24/210 | F62: шт. | G62: 18 | H62: 0 | I62: 0 | J62: 0 | K62: 0 | L62: 1,2 | CA62: Анкер химический (капсула с клеевым составом) Hilti HVU М24/210
A63: 36 * Материалы заказчика | B63: ТССЦ-509-4617 Приказ Администрации ЛО от 20.10.15 №28 Применительно | C63: Шпилька анкерная Hilti: HIT-V-5,8 М24х450 (HAS) для использования с химическими анкерами HIT | F63: шт. | G63: 18 | H63: 0 | I63: 0 | J63: 0 | K63: 0 | L63: 1,2 | CA63: Шпилька анкерная Hilti: HIT-V-5,8 М24х450 (HAS) для использования с химическими анкерами HIT
A64: 37 | B64: ТЕР46-03-014-01 Приказ Администрации ЛО от 20.10.15 №28 | C64: Сверление вертикальных отверстий в железобетонных конструкциях полов перфоратором глубиной 200 мм диаметром: 20 мм | F64: 100 отверстий | G64: 0.18 | H64: 5012.94 | I64: 6015.53 | J64: 0 | K64: 0 | L64: 1,2 | CA64: Сверление вертикальных отверстий в железобетонных конструкциях полов перфоратором глубиной 200 мм диаметром: 20 мм
A65: 38 | B65: ТЕР46-03-014-14 Приказ Администрации ЛО от 20.10.15 №28 | C65: На каждые 10 мм изменения глубины сверления добавлять или исключать: к расценке 46-03-014-01 | F65: 100 отверстий | G65: -0.18 | H65: -2145.27 | I65: -2574.32 | J65: 0 | K65: 0 | L65: 1,2 | CA65: На каждые 10 мм изменения глубины сверления добавлять или исключать: к расценке 46-03-014-01
A66: 39 | B66: ТЕР06-01-015-03 Приказ Администрации ЛО от 20.10.15 №28 | C66: Установка анкерных болтов: при бетонировании со связями из арматуры | F66: 1 т | G66: 0.004086 | H66: 285.4 | I66: 342.48 | J66: 408.02 | K66: 489.62 | L66: 1,2 | CA66: Установка анкерных болтов: при бетонировании со связями из арматуры
A67: Крепление стоек вертикального гравитационного натяжного устройтсва к ростверку | H67: 0 | I67: 0 | J67: 0 | K67: 0 | L67: 1,2 | CF67: Крепление стоек вертикального гравитационного натяжного устройтсва к ростверку
A68: 40 | B68: ТЕР46-08-012-01 Приказ Администрации ЛО от 20.10.15 №28 | C68: Установка анкеров в отверстия глубиной 100 мм с применением смесей серии MASTERFLOW, диаметр анкера: до 8 мм | F68: 100 шт. | G68: 0.04 | H68: 714.51 | I68: 857.41 | J68: 0 | K68: 0 | L68: 1,2 | CA68: Установка анкеров в отверстия глубиной 100 мм с применением смесей серии MASTERFLOW, диаметр анкера: до 8 мм
A69: 41 | B69: ТЕР46-08-012-06 Приказ Администрации ЛО от 20.10.15 №28 | C69: На каждые 10 мм изменения глубины отверстия добавлять (уменьшать) к расценке: 46-08-012-01 | F69: 100 шт. | G69: 0.04 | H69: 1836.58 | I69: 2203.9 | J69: 0 | K69: 0 | L69: 1,2 | CA69: На каждые 10 мм изменения глубины отверстия добавлять (уменьшать) к расценке: 46-08-012-01
A70: 42 * Материалы заказчика | B70: ТССЦ-509-2631 Приказ Администрации ЛО от 20.10.15 №28 Применительно | C70: Капсула с клеевым составом Hilti HVU-TZ M20 | F70: шт. | G70: 4 | H70: 0 | I70: 0 | J70: 0 | K70: 0 | L70: 1,2 | CA70: Капсула с клеевым составом Hilti HVU-TZ M20
A71: 43 * Материалы заказчика | B71: ТССЦ-509-4616 Приказ Администрации ЛО от 20.10.15 №28 Применительно | C71: Шпилька анкерная Hilti: HIT-V-5,8 М16х300 (HAS) для использования с химическими анкерами HIT | F71: шт. | G71: 4 | H71: 0 | I71: 0 | J71: 0 | K71: 0 | L71: 1,2 | CA71: Шпилька анкерная Hilti: HIT-V-5,8 М16х300 (HAS) для использования с химическими анкерами HIT
A72: Крепление стоек орграждения к роствергу | H72: 0 | I72: 0 | J72: 0 | K72: 0 | L72: 1,2 | CF72: Крепление стоек орграждения к роствергу
A73: 44 | B73: ТЕР46-08-012-01 Приказ Администрации ЛО от 20.10.15 №28 | C73: Установка анкеров в отверстия глубиной 100 мм с применением смесей серии MASTERFLOW, диаметр анкера: до 8 мм | F73: 100 шт. | G73: 24 | H73: 428723.82 | I73: 514468.58 | J73: 0 | K73: 0 | L73: 1,2 | CA73: Установка анкеров в отверстия глубиной 100 мм с применением смесей серии MASTERFLOW, диаметр анкера: до 8 мм
A74: 45 | B74: ТЕР46-08-012-06 Приказ Администрации ЛО от 20.10.15 №28 | C74: На каждые 10 мм изменения глубины отверстия добавлять (уменьшать) к расценке: 46-08-012-01 | F74: 100 шт. | G74: 24 | H74: 367322.89 | I74: 440787.47 | J74: 0 | K74: 0 | L74: 1,2 | CA74: На каждые 10 мм изменения глубины отверстия добавлять (уменьшать) к расценке: 46-08-012-01
A75: 46 * Материалы заказчика | B75: ТССЦ-509-2631 Приказ Администрации ЛО от 20.10.15 №28 Применительно | C75: Капсула с клеевым составом Hilti HVU-TZ M20 | F75: шт. | G75: 24 | H75: 0 | I75: 0 | J75: 0 | K75: 0 | L75: 1,2 | CA75: Капсула с клеевым составом Hilti HVU-TZ M20
A76: 47 * Материалы заказчика | B76: ТССЦ-509-4616 Приказ Администрации ЛО от 20.10.15 №28 Применительно | C76: Шпилька анкерная Hilti: HIT-V-5,8 М16х300 (HAS) для использования с химическими анкерами HIT | F76: шт. | G76: 24 | H76: 0 | I76: 0 | J76: 0 | K76: 0 | L76: 1,2 | CA76: Шпилька анкерная Hilti: HIT-V-5,8 М16х300 (HAS) для использования с химическими анкерами HIT
A77: Крепление лебедки обслуживания к росвергу | H77: 0 | I77: 0 | J77: 0 | K77: 0 | L77: 1,2 | CF77: Крепление лебедки обслуживания к росвергу
A78: 48 | B78: ТЕР46-08-012-01 Приказ Администрации ЛО от 20.10.15 №28 | C78: Установка анкеров в отверстия глубиной 100 мм с применением смесей серии MASTERFLOW, диаметр анкера: до 8 мм | F78: 100 шт. | G78: 0.04 | H78: =I78/L77 -> 714.51 | I78: 857.41 | J78: =K78/L77 -> 0 | K78: 0 | L78: 1,2 | CA78: Установка анкеров в отверстия глубиной 100 мм с применением смесей серии MASTERFLOW, диаметр анкера: до 8 мм
A79: 49 | B79: ТЕР46-08-012-06 Приказ Администрации ЛО от 20.10.15 №28 | C79: На каждые 10 мм изменения глубины отверстия добавлять (уменьшать) к расценке: 46-08-012-01 | F79: 100 шт. | G79: 0.04 | H79: 1836.58 | I79: 2203.9 | J79: 0 | K79: 0 | L79: 1,2 | CA79: На каждые 10 мм изменения глубины отверстия добавлять (уменьшать) к расценке: 46-08-012-01
A80: 50 * Материалы заказчика | B80: ТССЦ-509-2631 Приказ Администрации ЛО от 20.10.15 №28 Применительно | C80: Капсула с клеевым составом Hilti HVU-TZ M20 | F80: шт. | G80: 4 | H80: 0 | I80: 0 | J80: 0 | K80: 0 | L80: 1,2 | CA80: Капсула с клеевым составом Hilti HVU-TZ M20
A81: 51 * Материалы заказчика | B81: ТССЦ-509-4616 Приказ Администрации ЛО от 20.10.15 №28 Применительно | C81: Шпилька анкерная Hilti: HIT-V-5,8 М16х300 (HAS) для использования с химическими анкерами HIT | F81: шт. | G81: 4 | H81: 0 | I81: 0 | J81: 0 | K81: 0 | L81: 1,2 | CA81: Шпилька анкерная Hilti: HIT-V-5,8 М16х300 (HAS) для использования с химическими анкерами HIT
A82: Итоги по смете: | I82: =SUM(I13:I81) -> 25855366.3 | K82: =SUM(K13:K81) -> 371978.92 | L82: 1,2 | CG82: Итоги по смете:
A83: Итоги по смете: | I83: =I82+K82 -> 26227345.22 | L83: 1,2 | CG83: Итоги по смете:

Sheet 3.2-КЖ1_индикатив
A2: Терминал по перевалке минеральных удобрений в морском торговом порту Усть-Луга. Береговые объекты терминала
A3: (наименование стройки)
A5: ЛОКАЛЬНАЯ СМЕТА № 1632-2021-3.1-КЖ2_07.03.010-В02
A6: (локальная смета)
A7: на Конструкции железобетонные. Ростверк., 07.03.010 Крытый склад № 2 (код SAP 01.01.001) код ГП 3.1
A8: (наименование работ и затрат, наименование объекта)
A10: № п/п | B10: Обоснование | C10: Наименование работ и затрат | F10: Единица измерения | G10: Кол-во | H10: Цена за ед.изм. работ, руб. с НДС | I10: Стоимость работ, всего, руб., с НДС | J10: Цена за ед.изм. материалов, руб. с НДС | K10: Стоимость материалов, всего, руб., с НДС
A11: 1 | B11: 2 | C11: 3 | F11: 4 | G11: 5 | H11: 6 | I11: 7 | J11: 8 | K11: 9
A12: Раздел 1. Рельсовый путь № 1
A13: 1 | B13: ТЕР09-03-005-02 Приказ Администрации ЛО от 20.10.15 №28 | C13: Монтаж подкрановых путей: по металлическим подкрановым балкам для рельсов типа КР //вес 83,09 кг./м | F13: 100 м рельса в одну нитку | G13: 7.6949 | H13: =I13/L13 -> 19606636.61 | I13: 23527963.93 | J13: =K13/L13 -> 347298.68 | K13: 416758.41 | L13: 1.2
A14: 2 * Материалы заказчика | B14: ТССЦ-202-0017 Приказ Администрации ЛО от 20.10.15 №28 | C14: Пути подкрановые, марка стали: С 255, крепления и упоры//Рельсовые комплекты | F14: т | G14: 29.78362 | H14: =I14/L14 -> 0 | J14: =K14/L14 -> 0 | L14: 1.2
A15: 3 * Материалы заказчика | B15: ТССЦ-202-0016 Приказ Администрации ЛО от 20.10.15 №28 | C15: Пути подкрановые, марка стали: С 255, рельсы железнодорожные | F15: т | G15: 31.9684621 | H15: 0 | J15: 0 | L15: 1.2
A16: Раздел 2. Рельсовый путь № 2 | H16: 0 | I16: 0 | J16: 0 | K16: 0 | L16: 1.2
A17: 4 | B17: ТЕР09-03-005-02 Приказ Администрации ЛО от 20.10.15 №28 | C17: Монтаж подкрановых путей: по металлическим подкрановым балкам для рельсов типа КР //вес 83,09 кг./м | F17: 100 м рельса в одну нитку | G17: 8.0702 | H17: 6004652.48 | I17: 7205582.97 | J17: 125465.39 | K17: 150558.47 | L17: 1.2
A18: 5 * Материалы заказчика | B18: ТССЦ-202-0017 Приказ Администрации ЛО от 20.10.15 №28 | C18: Пути подкрановые, марка стали: С 255, крепления и упоры//Рельсовые комплекты | F18: т | G18: 31.7311 | H18: 0 | J18: 0 | L18: 1.2
A19: 6 * Материалы заказчика | B19: ТССЦ-202-0016 Приказ Администрации ЛО от 20.10.15 №28 | C19: Пути подкрановые, марка стали: С 255, рельсы железнодорожные | F19: т | G19: 45.7862797 | H19: 0 | J19: 0 | L19: 1.2
A20: Раздел 3. Рельсовый путь № 3 | H20: 0 | I20: 0 | J20: 0 | K20: 0 | L20: 1.2
A21: 7 | B21: ТЕР09-03-005-02 Приказ Администрации ЛО от 20.10.15 №28 | C21: Монтаж подкрановых путей: по металлическим подкрановым балкам для рельсов типа КР //вес 83,09 кг./м | F21: 100 м рельса в одну нитку | G21: 7.7722 | H21: 17334076.34 | I21: 20800891.61 | J21: 120832.47 | K21: 144998.96 | L21: 1.2
A22: 8 * Материалы заказчика | B22: ТССЦ-202-0017 Приказ Администрации ЛО от 20.10.15 №28 | C22: Пути подкрановые, марка стали: С 255, крепления и упоры//Рельсовые комплекты | F22: т | G22: 14.42985 | H22: 0 | J22: 0 | L22: 1.2
A23: 9 * Материалы заказчика | B23: ТССЦ-202-0016 Приказ Администрации ЛО от 20.10.15 №28 | C23: Пути подкрановые, марка стали: С 255, рельсы железнодорожные | F23: т | G23: 4.8809416 | H23: 0 | J23: 0 | L23: 1.2
A24: 10 | B24: ТЕР46-08-012-01 Приказ Администрации ЛО от 20.10.15 №28 | C24: Установка анкеров в отверстия глубиной 100 мм с применением смесей серии MASTERFLOW, диаметр анкера: до 8 мм | F24: 100 шт. | G24: 15.46 | H24: 55233.92 | I24: 66280.7 | J24: 0 | K24: 0 | L24: 1.2
A25: 11 | B25: ТЕР46-08-012-06 Приказ Администрации ЛО от 20.10.15 №28 | C25: На каждые 10 мм изменения глубины отверстия добавлять (уменьшать) к расценке: 46-08-012-01 | F25: 100 шт. | G25: 1546 | H25: 14197029.44 | I25: 17036435.33 | J25: 0 | K25: 0 | L25: 1.2
C26: глубина 400: 400-100=300/10=30 ПЗ=30 (ОЗП=30; ЭМ=30 к расх.; ЗПМ=30; МАТ=30 к расх.; ТЗ=30; ТЗМ=30) | H26: 0 | I26: 0 | J26: 0 | K26: 0 | L26: 1.2
A27: 12 * Материалы заказчика | B27: ТССЦ-509-2631 Приказ Администрации ЛО от 20.10.15 №28 Применительно | C27: Капсула с клеевым составом Hilti HVU-TZ M20 | F27: шт. | G27: 1546 | H27: 0 | J27: 0 | L27: 1.2
A28: 13 * Материалы заказчика | B28: ТССЦ-509-4616 Приказ Администрации ЛО от 20.10.15 №28 Применительно | C28: Шпилька анкерная Hilti: HIT-V-5,8 М16х300 (HAS) для использования с химическими анкерами HIT | F28: шт. | G28: 1546 | H28: 0 | J28: 0 | L28: 1.2
A29: Раздел 4. Подливка из безусадочного мелкозернистого бетона | H29: 0 | I29: 0 | J29: 0 | K29: 0 | L29: 1.2
A30: Рельсовый путь № 3 длинна 388,61 толщ (разрез 15-15 лист 424) 54 мм ширина (разрез 15-15 лист 424) - 400 мм | H30: 0 | I30: 0 | J30: 0 | K30: 0 | L30: 1.2
A31: Рельсовый путь № 2 длинна 403,510 м толщ (разрез 3-3 лист 424) 130 мм ширина (разрез 3-3 лист 424) - 600 мм | H31: 0 | I31: 0 | J31: 0 | K31: 0 | L31: 1.2
A32: Рельсовый путь № 1 длинна 384,745 м толщ (разрез 1-1 лист 424) 150 мм ширина (разрез 1-1 лист 424) - 600 мм | H32: 0 | I32: 0 | J32: 0 | K32: 0 | L32: 1.2
A33: Раздел 5. Крепление опорных деталей. Лист 424,.2, 424.3 | H33: 0 | I33: 0 | J33: 0 | K33: 0 | L33: 1.2
A34: Крепление стоек к ростверку | H34: 0 | I34: 0 | J34: 0 | K34: 0 | L34: 1.2
A35: 14 | B35: ТЕР46-08-012-01 Приказ Администрации ЛО от 20.10.15 №28 | C35: Установка анкеров в отверстия глубиной 100 мм с применением смесей серии MASTERFLOW, диаметр анкера: до 8 мм | F35: 100 шт. | G35: 3.42 | H35: 31768.44 | I35: 38122.13 | J35: 0 | K35: 0 | L35: 1.2
A36: 15 | B36: ТЕР46-08-012-06 Приказ Администрации ЛО от 20.10.15 №28 | C36: На каждые 10 мм изменения глубины отверстия добавлять (уменьшать) к расценке: 46-08-012-01 | F36: 100 шт. | G36: 3.42 | H36: 10887.43 | I36: 13064.91 | J36: 0 | K36: 0 | L36: 1.2
C37: глубина 140: 140-100=40/10=4 ПЗ=4 (ОЗП=4; ЭМ=4 к расх.; ЗПМ=4; МАТ=4 к расх.; ТЗ=4; ТЗМ=4) | H37: 0 | I37: 0 | J37: 0 | K37: 0 | L37: 1.2
A38: 16 * Материалы заказчика | B38: ТССЦ-509-2631 Приказ Администрации ЛО от 20.10.15 №28 Применительно | C38: Капсула с клеевым составом Hilti HVU-TZ M20 | F38: шт. | G38: 342 | H38: 0 | J38: 0 | L38: 1.2
A39: 17 * Материалы заказчика | B39: ТССЦ-509-4616 Приказ Администрации ЛО от 20.10.15 №28 Применительно | C39: Шпилька анкерная Hilti: HIT-V-5,8 М16х300 (HAS) для использования с химическими анкерами HIT | F39: шт. | G39: 342 | H39: 0 | J39: 0 | L39: 1.2
A40: Крепление тормозных упоров крацер-крана к роствергу | H40: 0 | I40: 0 | J40: 0 | K40: 0 | L40: 1.2
A41: 18 | B41: ТЕР46-08-012-05 Приказ Администрации ЛО от 20.10.15 №28 | C41: Установка анкеров в отверстия глубиной 100 мм с применением смесей серии MASTERFLOW, диаметр анкера: 20 мм и более | F41: 100 шт. | G41: 0.24 | H41: 5375.57 | I41: 6450.68 | J41: 0 | K41: 0 | L41: 1.2
A42: 19 | B42: ТЕР46-08-012-10 Приказ Администрации ЛО от 20.10.15 №28 | C42: На каждые 10 мм изменения глубины отверстия добавлять (уменьшать) к расценке: 46-08-012-05 | F42: 100 шт. | G42: 0.24 | H42: 0 | I42: 0 | J42: 0 | K42: 0 | L42: 1.2
C43: глубина 500: 500-100=400/10=40 ПЗ=40 (ОЗП=40; ЭМ=40 к расх.; ЗПМ=40; МАТ=40 к расх.; ТЗ=40; ТЗМ=40) | H43: 0 | I43: 0 | J43: 0 | K43: 0 | L43: 1.2
A44: 20 * Материалы заказчика | B44: ТССЦ-509-4614 Приказ Администрации ЛО от 20.10.15 №28 применительно | C44: Анкер химический (капсула с клеевым составом) Hilti HVU М24/210 | F44: шт. | G44: 24 | H44: 0 | J44: 0 | L44: 1.2
A45: 21 * Материалы заказчика | B45: ТССЦ-509-4617 Приказ Администрации ЛО от 20.10.15 №28 Применительно | C45: Шпилька анкерная Hilti: HIT-V-5,8 М24х450 (HAS) для использования с химическими анкерами HIT | F45: шт. | G45: 24 | H45: 0 | J45: 0 | L45: 1.2
A46: Крепление крацер-крана в сервесном положении | H46: 0 | I46: 0 | J46: 0 | K46: 0 | L46: 1.2
A47: 22 | B47: ТЕР46-08-012-01 Приказ Администрации ЛО от 20.10.15 №28 | C47: Установка анкеров в отверстия глубиной 100 мм с применением смесей серии MASTERFLOW, диаметр анкера: до 8 мм | F47: 100 шт. | G47: 0.24 | H47: 2229.37 | I47: 2675.24 | J47: 0 | K47: 0 | L47: 1.2
A48: 23 | B48: ТЕР46-08-012-06 Приказ Администрации ЛО от 20.10.15 №28 | C48: На каждые 10 мм изменения глубины отверстия добавлять (уменьшать) к расценке: 46-08-012-01 | F48: 100 шт. | G48: 0.24 | H48: 5730.24 | I48: 6876.29 | J48: 0 | K48: 0 | L48: 1.2
C49: глубина 400: 400-100=300/10=30 ПЗ=30 (ОЗП=30; ЭМ=30 к расх.; ЗПМ=30; МАТ=30 к расх.; ТЗ=30; ТЗМ=30) | H49: 0 | I49: 0 | J49: 0 | K49: 0 | L49: 1.2
A50: 24 * Материалы заказчика | B50: ТССЦ-509-2631 Приказ Администрации ЛО от 20.10.15 №28 Применительно | C50: Капсула с клеевым составом Hilti HVU-TZ M20 | F50: шт. | G50: 24 | H50: 0 | J50: 0 | L50: 1.2
A51: 25 * Материалы заказчика | B51: ТССЦ-509-4616 Приказ Администрации ЛО от 20.10.15 №28 Применительно | C51: Шпилька анкерная Hilti: HIT-V-5,8 М16х300 (HAS) для использования с химическими анкерами HIT | F51: шт. | G51: 24 | H51: 0 | J51: 0 | L51: 1.2
A52: Крепление стоек подъемной карентки к роствергу | H52: 0 | I52: 0 | J52: 0 | K52: 0 | L52: 1.2
A53: 26 | B53: ТЕР46-08-012-01 Приказ Администрации ЛО от 20.10.15 №28 | C53: Установка анкеров в отверстия глубиной 100 мм с применением смесей серии MASTERFLOW, диаметр анкера: до 8 мм | F53: 100 шт. | G53: 0.16 | H53: 1486.24 | I53: 1783.49 | J53: 0 | K53: 0 | L53: 1.2
A54: 27 | B54: ТЕР46-08-012-06 Приказ Администрации ЛО от 20.10.15 №28 | C54: На каждые 10 мм изменения глубины отверстия добавлять (уменьшать) к расценке: 46-08-012-01 | F54: 100 шт. | G54: 0.16 | H54: 3820.15 | I54: 4584.18 | J54: 0 | K54: 0 | L54: 1.2
C55: глубина 400: 400-100=300/10=30 ПЗ=30 (ОЗП=30; ЭМ=30 к расх.; ЗПМ=30; МАТ=30 к расх.; ТЗ=30; ТЗМ=30) | H55: 0 | I55: 0 | J55: 0 | K55: 0 | L55: 1.2
A56: 28 * Материалы заказчика | B56: ТССЦ-509-4614 Приказ Администрации ЛО от 20.10.15 №28 применительно | C56: Анкер химический (капсула с клеевым составом) Hilti HVU М24/210 | F56: шт. | G56: 16 | H56: 0 | J56: 0 | L56: 1.2
A57: 29 * Материалы заказчика | B57: ТССЦ-509-4617 Приказ Администрации ЛО от 20.10.15 №28 Применительно | C57: Шпилька анкерная Hilti: HIT-V-5,8 М24х450 (HAS) для использования с химическими анкерами HIT | F57: шт. | G57: 16 | H57: 0 | J57: 0 | L57: 1.2
A58: 30 | B58: ТЕР46-03-014-01 Приказ Администрации ЛО от 20.10.15 №28 | C58: Сверление вертикальных отверстий в железобетонных конструкциях полов перфоратором глубиной 200 мм диаметром: 20 мм | F58: 100 отверстий | G58: 0.08 | H58: 1158.55 | I58: 1390.26 | J58: 0 | K58: 0 | L58: 1.2
A59: 31 | B59: ТЕР46-03-014-14 Приказ Администрации ЛО от 20.10.15 №28 | C59: На каждые 10 мм изменения глубины сверления добавлять или исключать: к расценке 46-03-014-01 | F59: 100 отверстий | G59: -0.08 | H59: -495.79 | I59: -594.95 | J59: 0 | K59: 0 | L59: 1.2
C60: глубина 100: 200-100=100/10=10 ПЗ=10 (ОЗП=10; ЭМ=10 к расх.; ЗПМ=10; МАТ=10 к расх.; ТЗ=10; ТЗМ=10) | H60: 0 | I60: 0 | J60: 0 | K60: 0 | L60: 1.2
A61: 32 | B61: ТЕР06-01-015-03 Приказ Администрации ЛО от 20.10.15 №28 | C61: Установка анкерных болтов: при бетонировании со связями из арматуры | F61: 1 т | G61: 0.002317 | H61: 420.78 | I61: 504.94 | J61: 0 | K61: 0 | L61: 1.2
A62: Крепление тормазных упоров мобильного бункера | H62: 0 | I62: 0 | J62: 0 | K62: 0 | L62: 1.2
A63: 33 | B63: ТЕР46-08-012-01 Приказ Администрации ЛО от 20.10.15 №28 | C63: Установка анкеров в отверстия глубиной 100 мм с применением смесей серии MASTERFLOW, диаметр анкера: до 8 мм | F63: 100 шт. | G63: 0.18 | H63: 1672.03 | I63: 2006.43 | J63: 0 | K63: 0 | L63: 1.2
A64: 34 | B64: ТЕР46-08-012-06 Приказ Администрации ЛО от 20.10.15 №28 | C64: На каждые 10 мм изменения глубины отверстия добавлять (уменьшать) к расценке: 46-08-012-01 | F64: 100 шт. | G64: 0.18 | H64: 4297.69 | I64: 5157.23 | J64: 0 | K64: 0 | L64: 1.2
C65: глубина 400: 400-100=300/10=30 ПЗ=30 (ОЗП=30; ЭМ=30 к расх.; ЗПМ=30; МАТ=30 к расх.; ТЗ=30; ТЗМ=30) | H65: 0 | I65: 0 | J65: 0 | K65: 0 | L65: 1.2
A66: 35 * Материалы заказчика | B66: ТССЦ-509-4614 Приказ Администрации ЛО от 20.10.15 №28 применительно | C66: Анкер химический (капсула с клеевым составом) Hilti HVU М24/210 | F66: шт. | G66: 18 | H66: 0 | J66: 0 | L66: 1.2
A67: 36 * Материалы заказчика | B67: ТССЦ-509-4617 Приказ Администрации ЛО от 20.10.15 №28 Применительно | C67: Шпилька анкерная Hilti: HIT-V-5,8 М24х450 (HAS) для использования с химическими анкерами HIT | F67: шт. | G67: 18 | H67: 0 | J67: 0 | L67: 1.2
A68: 37 | B68: ТЕР46-03-014-01 Приказ Администрации ЛО от 20.10.15 №28 | C68: Сверление вертикальных отверстий в железобетонных конструкциях полов перфоратором глубиной 200 мм диаметром: 20 мм | F68: 100 отверстий | G68: 0.18 | H68: 2606.73 | I68: 3128.07 | J68: 0 | K68: 0 | L68: 1.2
A69: 38 | B69: ТЕР46-03-014-14 Приказ Администрации ЛО от 20.10.15 №28 | C69: На каждые 10 мм изменения глубины сверления добавлять или исключать: к расценке 46-03-014-01 | F69: 100 отверстий | G69: -0.18 | H69: -1115.54 | I69: -1338.65 | J69: 0 | K69: 0 | L69: 1.2
C70: глубина 100: 200-100=100/10=10 ПЗ=10 (ОЗП=10; ЭМ=10 к расх.; ЗПМ=10; МАТ=10 к расх.; ТЗ=10; ТЗМ=10) | H70: 0 | I70: 0 | J70: 0 | K70: 0 | L70: 1.2
A71: 39 | B71: ТЕР06-01-015-03 Приказ Администрации ЛО от 20.10.15 №28 | C71: Установка анкерных болтов: при бетонировании со связями из арматуры | F71: 1 т | G71: 0.004086 | H71: 742.03 | I71: 890.44 | J71: 0 | K71: 0 | L71: 1.2
A72: Крепление стоек орграждения к роствергу | H72: 0 | I72: 0 | J72: 0 | K72: 0 | L72: 1.2
A73: 40 | B73: ТЕР46-08-012-01 Приказ Администрации ЛО от 20.10.15 №28 | C73: Установка анкеров в отверстия глубиной 100 мм с применением смесей серии MASTERFLOW, диаметр анкера: до 8 мм | F73: 100 шт. | G73: 60 | H73: 557340.93 | I73: 668809.11 | J73: 0 | K73: 0 | L73: 1.2
A74: 41 | B74: ТЕР46-08-012-06 Приказ Администрации ЛО от 20.10.15 №28 | C74: На каждые 10 мм изменения глубины отверстия добавлять (уменьшать) к расценке: 46-08-012-01 | F74: 100 шт. | G74: 60 | H74: 477519.72 | I74: 573023.66 | J74: 0 | K74: 0 | L74: 1.2
C75: глубина 200: 200-100=100/10=10 ПЗ=10 (ОЗП=10; ЭМ=10 к расх.; ЗПМ=10; МАТ=10 к расх.; ТЗ=10; ТЗМ=10) | H75: 1124902.11 | I75: 1349882.53 | J75: 0 | K75: 0 | L75: 1.2
A76: 42 * Материалы заказчика | B76: ТССЦ-509-2631 Приказ Администрации ЛО от 20.10.15 №28 Применительно | C76: Капсула с клеевым составом Hilti HVU-TZ M20 | F76: шт. | G76: 60 | H76: 0 | J76: 0 | L76: 1.2
A77: 43 * Материалы заказчика | B77: ТССЦ-509-4616 Приказ Администрации ЛО от 20.10.15 №28 Применительно | C77: Шпилька анкерная Hilti: HIT-V-5,8 М16х300 (HAS) для использования с химическими анкерами HIT | F77: шт. | G77: 60 | H77: 0 | J77: 0
A78: Итоги по смете: | I78: =SUM(I13:I77) -> 71313570.53 | K78: =SUM(K13:K77) -> 712315.84 | BW78: Итоги по смете:
A79: Итоги по смете: | I79: =I78+K78 -> 72025886.37 | BW79: Итоги по смете:

Sheet ТКП
D1: Коммерческое предложение к Документации о закупке № ____
A2: Наименование закупки: | C2: Выполнение комплекса строительно-монтажных работ по монтажу подкрановых путей крытого склада №1 и №2 на объекте «Терминал по перевалке минеральных удобрений в морском торговом порту Усть-Луга».
A3: Исх. № ______________ от __.__.2023г.
A5: Наименование Участника:
A6: ИНН Участника
A8: № п/п | B8: Наименование | C8: Требование ООО «ЕТУ» | D8: Предложение Участника, руб без НДС
D9: Материалы | E9: Работы
A10: 1 | B10: Выполнение комплекса работ | C10: Объем и состав работ в соответствии с ТЗ
A11: 2 | B11: Итоговая стоимость строительно-монтажных работ
A12: 3 | B12: НДС | C12: 0.2
A13: 4 | B13: Итоговая стоимость СМР, руб с НДС
A14: 5 | B14: Договорной коэффициент к сметной стоимости* | C14: Кд - договорной коэффициент начисляется для приведения итоговой сметной стоимости к стоимости Договора. Коэффициент применяется при расчете стоимости строительно-монтажных работ, за исключением стоимости материально-технических ресурсов. Коэффициент фиксируется при направлении ТКП и дальнейшей корректировке не подлежит.
A15: 6 | B15: Срок выполнения работ | C15: не более 100 календарных дней с даты заключения договора | D15: Участником указывается согласие или встречные условия
A16: 7 | B16: Порядок оплаты | C16: Допускается авансирование работ в объеме до 50% стоимости договора, с целью мобилизации, закупки/поставки материалов. Авансирование осуществляется при предоставлении Подрядчиком Банковской гарантии возврата авансового платежа в размере аванса. Текст банковской гарантии и банк согласовывается с Заказчиком заранее. Если сумма аванса не превышает 5 000 000 руб. допускается авансирование без предоставления банковской гарантии, при согласовании Заказчика. В случае авансирования Заказчик оплачивает Подрядчику аванс в течении 10 (десяти) рабочих дней от даты подписания Договора при условии предоставления Подрядчиком счета и оригинала, согласованной с Заказчиком безотзывной банковской гарантии возврата авансового платежа. Расчеты за фактически выполненный Подрядчиком и принятый Заказчиком объем Работ по договору осуществляется ежемесячно в установленном порядке в течение 10 (десяти) рабочих дней с момента получения от Подрядчика счета на оплату и подписанных Сторонами без замечаний Актов о приемке выполненных работ (Форма № КС-2), Справок о стоимости выполненных работ и затрат (Форма № КС-3), полного комплекта исполнительной документации и иных необходимых документов, предусмотренных Договором, при условии предоставления счета/счет-фактуры. Оплата выполненных Работ осуществляется Заказчиком с удержанием денежных средств в размере 5% от стоимости выполненных Работ (гарантийное удержание) и за вычетом авансового платежа в размере ___% от стоимости выполненных за месяц Работ. Подрядчик обязан использовать аванс только для оплаты поставок конструкций, материалов и оборудования, а также для оплаты расходов, связанных с мобилизацией и выполнением строительных работ, предусмотренных условиями настоящего Договора. Окончательный расчет за выполненные Работы по Объекту производится Заказчиком после завершения всех предусмотренных Договором Работ и устранения выявленных дефектов, передачи Заказчику по акту полного комплекта исполнительной документации, в срок не позднее 10 (десяти) банковских дней с момента подписания Сторонами акт приема-передачи результата выполненных работ. | D16: Участником указывается % аванса и согласие или встречные условия
A51: 8 | B51: Гарантия на выполненные работы | C51: Гарантийный срок на результат работы Подрядчика устанавливается не менее 36 месяцев предусмотренного Договором. | D51: Участником указывается согласие или встречные условия
A52: 9 | B52: Контактное лицо (ФИО, должность, телефон, e-mail)
A54: Настоящее Предложение имеет правовой статус оферты и действует до " " _____ 202_г.
A55: Итоговая стоимость фиксируется в Договоре и должна включать весь комплекс работ "под ключ", при этом закрытие актов выполненных работ будет производиться по ценообразованию, закрепленному в Договоре
A56: * в случае, если при согласовании сметы будет выявлено, что Кд не соответствует итоговой стоимости СМР, Кд устанавливается по согласованной с Заказчиком смете по описанной в ТЗ и Договоре методике расчета
A60: (Должность уполномоченного представителя Участника) | E60: (Подпись)
A63: Примечание - коммерческое предложение необходимо оформить:
A64: - на фирменном бланке;
A65: - присвоить ему номер;
A66: - указать дату;
A67: - за подписью уполномоченного лица;
